fUST/lending_fUST_20240524
["ID","MTS","AMOUNT","RATE_DAILY","PERIOD"]
[327845852,1716552639773,-500.0,0.00024657,2]
[327845853,1716552639782,-399.5421419,0.00024657,2]
[327845854,1716552639791,-500.0,0.00024657,2]
[327845855,1716552639802,-500.0,0.00024657,2]
[327845856,1716552639811,-500.0,0.00024657,2]
[327845857,1716552639821,-500.0,0.00024657,2]
[327845858,1716552639830,-623.6,0.00024657,2]
[327845859,1716552639839,-500.0,0.00024657,2]
[327845860,1716552639849,-500.0,0.00024657,2]
[327845861,1716552639858,-500.0,0.00024657,2]
[327845862,1716552639867,-500.0,0.00024657,2]
[327845863,1716552639877,-500.0,0.00024657,2]
[327845864,1716552639886,-500.0,0.00024657,2]
[327845865,1716552639896,-500.0,0.00024657,2]
[327845866,1716552639905,-500.0,0.00024657,2]
[327845867,1716552639914,-500.0,0.00024657,2]
[327845868,1716552639924,-500.0,0.00024657,2]
[327845869,1716552639933,-500.0,0.00024657,2]
[327845870,1716552639942,-500.0,0.00024657,2]
[327845871,1716552639951,-260.17,0.00024657,2]
[327845872,1716552639961,-500.0,0.00024657,2]
[327845873,1716552639970,-500.0,0.00024657,2]
[327845874,1716552639980,-557.95,0.00024657,2]
[327845875,1716552639989,-500.0,0.00024657,2]
[327845876,1716552639999,-500.0,0.00024657,2]
[327845877,1716552640008,-502.08631911,0.00024657,2]
[327845878,1716552640019,-500.0,0.00024657,2]
[327845879,1716552640028,-775.75,0.00024657,2]
[327845880,1716552640038,-500.0,0.00024657,2]
[327845881,1716552640048,-500.0,0.00024657,2]
[327845882,1716552640057,-860.55,0.00024657,2]
[327845883,1716552640067,-500.0,0.00024657,2]
[327845884,1716552640076,-500.0,0.00024657,2]
[327845885,1716552640085,-1714.82,0.00024657,2]
[327845886,1716552640095,-1525.35,0.00024657,2]
[327845887,1716552640104,-2365.9,0.00024657,2]
[327845888,1716552640114,-500.0,0.00024657,2]
[327845889,1716552640123,-500.0,0.00024657,2]
[327845890,1716552640133,-500.0,0.00024657,2]
[327845891,1716552640142,-500.0,0.00024657,2]
[327845892,1716552640151,-500.0,0.00024657,2]
[327845893,1716552640160,-500.0,0.00024657,2]
[327845894,1716552640169,-998.79,0.00024657,2]
[327845895,1716552640178,-500.0,0.00024657,2]
[327845896,1716552640187,-1220.95,0.00024657,2]
[327845897,1716552640197,-1335.4,0.00024657,2]
[327845898,1716552640206,-500.0,0.00024657,2]
[327845899,1716552640215,-853.69,0.00024657,2]
[327845900,1716552640224,-500.0,0.00024657,2]
[327845901,1716552640236,-500.0,0.00024657,2]
[327845902,1716552640245,-500.0,0.00024657,2]
[327845903,1716552640255,-151.0,0.00024657,2]
[327845904,1716552640264,-164.938396,0.00024657,2]
[327845905,1716552640278,-500.0,0.00024657,2]
[327845906,1716552640287,-500.0,0.00024657,2]
[327845907,1716552640296,-500.0,0.00024657,2]
[327845908,1716552640305,-710.68,0.00024657,2]
[327845909,1716552640314,-500.0,0.00024657,2]
[327845910,1716552640324,-500.0,0.00024657,2]
[327845911,1716552640333,-827.72,0.00024657,2]
[327845912,1716552640342,-500.0,0.00024657,2]
[327845913,1716552640351,-314.05532137,0.00024657,2]
[327845914,1716552640360,-500.0,0.00024657,2]
[327845915,1716552640370,-500.0,0.00024657,2]
[327845916,1716552640379,-505.27,0.00024657,2]
[327845917,1716552640389,-500.0,0.00024657,2]
[327845918,1716552640398,-500.0,0.00024657,2]
[327845919,1716552640407,-1675.72,0.00024657,2]
[327845920,1716552640416,-546.01,0.00024657,2]
[327845921,1716552640426,-500.0,0.00024657,2]
[327845922,1716552640435,-1326.06,0.00024657,2]
[327845923,1716552640445,-267.80707084,0.00024657,2]
[327845924,1716552640455,-510.0,0.00024657,2]
[327845925,1716552640465,-500.0,0.00024657,2]
[327845926,1716552640474,-2103.1,0.00024657,2]
[327845927,1716552640483,-520.84,0.00024657,2]
[327845928,1716552640493,-500.0,0.00024657,2]
[327845930,1716552640502,-500.0,0.00024657,2]
[327845931,1716552640511,-691.17,0.00024657,2]
[327845932,1716552640521,-500.0,0.00024657,2]
[327845933,1716552640531,-573.58,0.00024657,2]
[327845934,1716552640540,-500.0,0.00024657,2]
[327845935,1716552640549,-500.0,0.00024657,2]
[327845936,1716552640559,-500.0,0.00024657,2]
[327845937,1716552640568,-500.0,0.00024657,2]
[327845938,1716552640577,-16257.66,0.00024657,2]
[327845939,1716552640586,-500.0,0.00024657,2]
[327845940,1716552640596,-500.0,0.00024657,2]
[327845941,1716552640605,-500.0,0.00024657,2]
[327845942,1716552640615,-1632.10439197,0.00024657,2]
[327845947,1716552641444,-3772.40560803,0.00024657,2]
[327845948,1716552641454,-500.0,0.00024657,2]
[327845949,1716552641463,-500.0,0.00024657,2]
[327845950,1716552641472,-500.0,0.00024657,2]
[327845951,1716552641482,-980.55,0.00024657,2]
[327845952,1716552641491,-756.07,0.00024657,2]
[327845953,1716552641500,-500.0,0.00024657,2]
[327845954,1716552641509,-1294.16,0.00024657,2]
[327845955,1716552641519,-1067.58,0.00024657,2]
[327845957,1716552641529,-500.0,0.00024657,2]
[327845959,1716552641537,-1642.09,0.00024657,2]
[327845961,1716552641547,-1569.76,0.00024657,2]
[327845963,1716552641555,-1935.99,0.00024657,2]
[327845965,1716552641565,-500.0,0.00024657,2]
[327845966,1716552641573,-63.96433917,0.00024657,2]
[327846060,1716553005170,150.83408251,0.00024637,30]
[327846061,1716553005254,150.83408251,0.00024144,120]
[327846065,1716553542187,-705.16190719,0.00019663,2]
[327846066,1716553542208,-197.0909364,0.00019664,2]
[327846067,1716553542230,-269.0062986,0.00019767,2]
[327846068,1716553542252,-590.13205413,0.00019912,2]
[327846069,1716553632103,-1543.93317503,0.00019654,2]
[327846070,1716553641110,-273.72171019,0.00019654,2]
[327846071,1716553644094,-1182.34511478,0.00019654,2]
[327846072,1716553644114,-210.6351642,0.00019747,2]
[327846073,1716553644136,-3269.41013298,0.00019912,2]
[327846074,1716553650113,-3000.0,0.00019912,2]
[327846076,1716553747607,896.78798513,0.000189,2]
[327846077,1716553750994,11569.0,0.00019,2]
[327846078,1716553752089,-15795.0211319,0.00019706,2]
[327846079,1716553752109,-3375.14983584,0.00019912,2]
[327846080,1716553752130,-295.32834245,0.00019912,2]
[327846081,1716553752150,-7177.15659591,0.00019912,2]
[327846082,1716553752170,-365.1890674,0.00019912,2]
[327846083,1716553753119,-413.78063509,0.00020189,2]
[327846085,1716553764864,365.1890674,0.00019912,2]
[327846127,1716553832312,-691.76871529,0.000209,2]
[327846128,1716553832322,-273.72171019,0.00020911,2]
[327846129,1716553832331,-10432.63282907,0.00020912,2]
[327846130,1716553832340,-273.93598036,0.00020913,2]
[327846131,1716553832349,-34765.09855048,0.00020913,2]
[327846175,1716553838234,-4744.45821654,0.00020913,2]
[327846176,1716553838243,-655.1586559,0.00021,2]
[327846177,1716553838253,-505.2018101,0.00021813,2]
[327846178,1716553838263,-366.92600426,0.00021813,2]
[327846179,1716553838272,-500.0,0.00021813,2]
[327846180,1716553838281,-500.0,0.00021813,2]
[327846181,1716553838291,-500.0,0.00021813,2]
[327846182,1716553838300,-500.0,0.00021813,2]
[327846183,1716553838310,-500.0,0.00021813,2]
[327846184,1716553838319,-500.0,0.00021813,2]
[327846185,1716553838329,-500.0,0.00021813,2]
[327846186,1716553838338,-500.0,0.00021813,2]
[327846187,1716553838348,-500.0,0.00021813,2]
[327846188,1716553838357,-500.0,0.00021813,2]
[327846189,1716553838366,-500.0,0.00021813,2]
[327846190,1716553838376,-500.0,0.00021813,2]
[327846191,1716553838385,-500.0,0.00021813,2]
[327846192,1716553838396,-500.0,0.00021813,2]
[327846193,1716553838405,-500.0,0.00021813,2]
[327846194,1716553838414,-500.0,0.00021813,2]
[327846195,1716553838424,-500.0,0.00021813,2]
[327846196,1716553838433,-500.0,0.00021813,2]
[327846197,1716553838442,-500.0,0.00021813,2]
[327846198,1716553838452,-500.0,0.00021813,2]
[327846199,1716553838461,-500.0,0.00021813,2]
[327846200,1716553838472,-500.0,0.00021813,2]
[327846201,1716553838481,-500.0,0.00021813,2]
[327846202,1716553838491,-643.02394444,0.00021813,2]
[327846203,1716553838500,-500.0,0.00021813,2]
[327846204,1716553838511,-500.0,0.00021813,2]
[327846205,1716553838520,-500.0,0.00021813,2]
[327846206,1716553838532,-500.0,0.00021813,2]
[327846207,1716553838542,-500.0,0.00021813,2]
[327846208,1716553838551,-691.76871526,0.00021814,2]
[327846209,1716553838561,-166.666666,0.00021918,2]
[327846210,1716553838572,-10000.0,0.00021918,2]
[327846211,1716553838581,-959.35754684,0.00022344,2]
[327846212,1716553838590,-166.666666,0.00022431,2]
[327846213,1716553838599,-691.76871526,0.00022729,2]
[327846214,1716553838611,-166.666666,0.00022944,2]
[327846215,1716553838620,-3000.0,0.00023,2]
[327846216,1716553838630,-3000.0,0.0002301,2]
[327846217,1716553838640,-3000.0,0.0002302,2]
[327846218,1716553838650,-4926.691549,0.0002303,2]
[327846219,1716553838659,-170.8982479,0.00023333,2]
[327846220,1716553838668,-153.0,0.00023333,2]
[327846221,1716553838677,-166.666666,0.00023456,2]
[327846222,1716553838687,-636.96787734,0.00023461,2]
[327846223,1716553838696,-691.76871526,0.00023643,2]
[327846224,1716553838705,-19585.87213198,0.00023835,11]
[327846225,1716553838715,-153.4557114,0.00023836,2]
[327846226,1716553838723,-153.0,0.00023836,2]
[327846227,1716553838733,-153.0,0.00023836,2]
[327846228,1716553838742,-153.0,0.00023836,2]
[327846229,1716553838751,-153.0,0.00023836,2]
[327846230,1716553838760,-896.78798513,0.000239,2]
[327846231,1716553838770,-166.666666,0.00023969,2]
[327846232,1716553838779,-997.5,0.00024,2]
[327846233,1716553838789,-600.0,0.00024,2]
[327846234,1716553838799,-151.0,0.00024117,5]
[327846235,1716553838809,-151.0,0.00024117,5]
[327846236,1716553838819,-3980.75777852,0.00024144,2]
[327846237,1716553838829,-153.0,0.00024155,2]
[327846238,1716553838840,-153.0,0.00024155,2]
[327846239,1716553838850,-306.0,0.00024155,2]
[327846240,1716553838860,-153.0,0.00024155,2]
[327846241,1716553838869,-306.0,0.00024155,2]
[327846242,1716553838879,-306.0,0.00024155,2]
[327846243,1716553838890,-153.0,0.00024155,2]
[327846244,1716553838899,-153.0,0.00024155,2]
[327846245,1716553838909,-294.6065359,0.00024155,2]
[327846246,1716553838918,-583.123622,0.00024155,2]
[327846247,1716553838927,-153.0,0.00024155,2]
[327846248,1716553838936,-153.0,0.00024155,2]
[327846249,1716553838946,-153.0,0.00024155,2]
[327846250,1716553838955,-153.0,0.00024155,2]
[327846251,1716553838964,-153.0,0.00024155,2]
[327846252,1716553838974,-153.0,0.00024155,2]
[327846253,1716553838983,-153.0,0.00024155,2]
[327846254,1716553838993,-153.0,0.00024155,2]
[327846255,1716553839002,-153.0,0.00024155,2]
[327846256,1716553839018,-153.0,0.00024155,2]
[327846257,1716553839027,-153.0,0.00024155,2]
[327846258,1716553839037,-153.0,0.00024155,2]
[327846259,1716553839047,-153.0,0.00024155,2]
[327846260,1716553839058,-153.0,0.00024155,2]
[327846261,1716553839067,-153.0,0.00024155,2]
[327846262,1716553839077,-153.0,0.00024155,2]
[327846263,1716553839087,-153.0,0.00024155,2]
[327846264,1716553839097,-153.0,0.00024155,2]
[327846265,1716553839107,-153.0,0.00024155,2]
[327846266,1716553839117,-151.0,0.00024197,5]
[327846267,1716553839127,-151.0,0.00024197,5]
[327846268,1716553839137,-600.0,0.0002425,2]
[327846269,1716553839149,-151.0,0.00024278,5]
[327846270,1716553839159,-395.185855,0.00024384,2]
[327846271,1716553839169,-166.957679,0.00024384,2]
[327846272,1716553839178,-2000.0,0.0002445,2]
[327846273,1716553839189,-154.8512806,0.00024466,2]
[327846274,1716553839199,-681.51905664,0.00024471,2]
[327846275,1716553839210,-166.666666,0.00024482,2]
[327846276,1716553839219,-600.0,0.000245,2]
[327846277,1716553839229,-31944.64704771,0.0002455,3]
[327846314,1716553843148,-258.31185584,0.00021813,2]
[327846316,1716553843158,-21.55637262,0.0002455,3]
[327846356,1716553844466,-195.71013292,0.0002455,3]
[327846365,1716553875329,150.5,0.00026565,35]
[327846366,1716553877888,193.5,0.00026555,35]
[327846367,1716553917354,234.00238778,0.00018,2]
[327846368,1716553917376,662.30978036,0.00018,2]
[327846369,1716553918803,154.82968734,9.999e-05,2]
[327846373,1716553963802,406.31765597,9.999e-05,2]
[327846375,1716554294847,229.78694383,0.00019086,2]
[327846378,1716554525444,896.31216814,0.00018,2]
[327846379,1716554693759,399.3819498,0.00019075,2]
[327846380,1716554735406,9177.774014,0.00019075,2]
[327846382,1716554768685,-271.81827747,0.00019184,2]
[327846383,1716554768706,-34962.38017179,0.00019185,2]
[327846384,1716554768728,-158.56026,0.00019631,2]
[327846385,1716554768750,-745.1889105,0.00019935,2]
[327846386,1716554768774,-17610.69254065,0.0002,2]
[327846392,1716554826098,-172.94217883,0.00020798,2]
[327846393,1716554826122,-5958.67016838,0.00020897,2]
[327846394,1716554826151,-7420.87542079,0.00020897,2]
[327846395,1716554828085,-5060.53299687,0.00020897,2]
[327846396,1716554851103,-271.81827747,0.00020898,2]
[327846397,1716554851124,-7992.83547811,0.00020898,2]
[327846398,1716554852102,-3569.27318228,0.00020898,2]
[327846400,1716554952907,158.18742048,0.000189,2]
[327846401,1716554952927,369.72539136,0.000189,2]
[327846461,1716555032397,-172.94217881,0.00020811,2]
[327846462,1716555032408,-314.24725001,0.00020898,2]
[327846463,1716555032423,-1049.6892,0.00020898,2]
[327846465,1716555032545,-316.42483883,0.00020898,2]
[327846598,1716555041665,-20851.9050645,0.00020897,2]
[327846658,1716555046282,-2903.34741827,0.00020897,2]
[327846659,1716555046312,-225.94334971,0.00020897,2]
[327846672,1716555069298,234.00238778,0.00014,2]
[327846673,1716555069319,549.39992464,0.00014,2]
[327846682,1716555161038,3632.73611165,0.00014,2]
[327846683,1716555168616,155.17529633,0.00015,2]
[327846684,1716555190521,9120.12767015,0.00014,2]
[327846685,1716555190556,3521.41511123,0.00014,2]
[327846686,1716555190597,154.92253873,0.00015,2]
[327846687,1716555208546,225.42395161,0.00015,2]
[327846688,1716555254769,351.94187456,0.000189,2]
[327846706,1716555559721,234.62791638,0.000189,2]
[327846711,1716555861206,156.41861092,0.000189,2]
[327846719,1716555882088,1014.0,0.00027,30]
[327846733,1716555922085,455.0,0.00019178,10]
[327846752,1716556036153,-158.56026,0.00019633,2]
[327846753,1716556036174,-161.41573518,0.00019636,2]
[327846754,1716556036195,-745.1889105,0.00019737,2]
[327846755,1716556036216,-417.57091557,0.00020589,2]
[327846756,1716556036239,-269.41182324,0.00020691,2]
[327846757,1716556036258,-3799.121861,0.00020716,2]
[327846758,1716556047119,-427.44615623,0.00020716,2]
[327846759,1716556047147,-10350.73424352,0.00020786,2]
[327846760,1716556049132,-6501.00517801,0.00020786,2]
[327846761,1716556065934,1000.0,0.00027,30]
[327846762,1716556149108,-3966.30001195,0.00019393,2]
[327846763,1716556149128,-34962.38017179,0.00019546,2]
[327846764,1716556149150,-3966.30001195,0.00019547,2]
[327846765,1716556149171,-374.37559531,0.00019853,2]
[327846766,1716556149410,-3966.30001195,0.00019897,2]
[327846776,1716556151103,-38885.64707402,0.00020139,2]
[327846781,1716556154145,-3112.17828844,0.00020139,2]
[327846782,1716556154166,-3966.30001195,0.0002014,2]
[327846783,1716556154186,-374.37559531,0.00020191,2]
[327846784,1716556154206,-374.37559531,0.00020433,2]
[327846785,1716556162620,150.0,0.000189,2]
[327846786,1716556169298,48.22109915,0.00020137,2]
[327846787,1716556169321,1971.18575552,0.00020137,2]
[327847095,1716556242087,-3966.30001195,0.00020245,2]
[327847096,1716556242097,-374.37559532,0.00020296,2]
[327847097,1716556242107,-3966.30001195,0.00020466,2]
[327847098,1716556242117,-7623.49538301,0.00020644,2]
[327847099,1716556242129,-33779.5,0.00020644,2]
[327848397,1716556256861,653.96033984,0.00020137,2]
[327848502,1716556257989,1554.52327033,0.00020137,2]
[327848537,1716556274868,171.266385,0.00019524,2]
[327848538,1716556281499,656.00053528,0.00020137,2]
[327848541,1716556373663,1143.36406491,0.00018868,2]
[327848543,1716556413121,16161.93177572,0.00020136,11]
[327848546,1716556464210,649.66109058,0.000189,2]
[327848547,1716556533117,8080.96588787,0.00020134,11]
[327848548,1716556765591,433.10739372,0.000189,2]
[327848549,1716556772914,4040.48294393,0.00020129,11]
[327848554,1716556861783,170.95682387,0.00018956,2]
[327848555,1716556970918,646.90123614,0.00018951,2]
[327848560,1716557067291,288.73826248,0.000189,2]
[327848561,1716557111344,250.0,0.00018108,2]
[327848562,1716557159144,-171.11565742,0.00019044,2]
[327848563,1716557163827,1500.0,0.00027,30]
[327848564,1716557170514,935.463896,0.0001812,2]
[327848565,1716557229103,-5156.7887599,0.00019041,2]
[327848566,1716557231100,-7125.29272418,0.00019041,2]
[327848576,1716557345105,-41775.12450731,0.00019038,2]
[327848578,1716557352069,170.95682383,0.00018939,2]
[327848579,1716557352099,-25547.4853739,0.00019037,2]
[327848580,1716557359109,-16450.33998856,0.00019037,2]
[327848581,1716557359129,-26320.43069149,0.00019038,2]
[327848582,1716557359151,-283.72768462,0.00019042,2]
[327848583,1716557359174,-13075.0691819,0.00019057,2]
[327848584,1716557359194,-445.1978745,0.00019066,2]
[327848585,1716557359219,-500.0,0.00019178,2]
[327848586,1716557359241,-500.0,0.00019178,2]
[327848587,1716557359266,-500.0,0.00019178,2]
[327848588,1716557359286,-419.35746135,0.00019178,2]
[327848589,1716557359309,-500.0,0.00019178,2]
[327848590,1716557359329,-500.0,0.00019178,2]
[327848591,1716557359353,-500.0,0.00019178,2]
[327848592,1716557359372,-500.0,0.00019178,2]
[327848593,1716557359398,-500.0,0.00019178,2]
[327848594,1716557359421,-500.0,0.00019178,2]
[327848595,1716557359445,-500.0,0.00019178,2]
[327848596,1716557359467,-500.0,0.00019178,2]
[327848597,1716557359490,-500.0,0.00019178,2]
[327848598,1716557359513,-500.0,0.00019178,2]
[327848599,1716557359536,-500.0,0.00019178,2]
[327848600,1716557359561,-500.0,0.00019178,2]
[327848601,1716557359585,-500.0,0.00019178,2]
[327848602,1716557359609,-500.0,0.00019178,2]
[327848603,1716557359632,-500.0,0.00019178,2]
[327848604,1716557359657,-500.0,0.00019178,2]
[327848605,1716557359680,-500.0,0.00019178,2]
[327848606,1716557359704,-500.0,0.00019178,2]
[327848607,1716557359727,-500.0,0.00019178,2]
[327848608,1716557359752,-500.0,0.00019178,2]
[327848609,1716557359778,-500.0,0.00019178,2]
[327848610,1716557359803,-500.0,0.00019178,2]
[327848611,1716557359828,-500.0,0.00019178,2]
[327848612,1716557359852,-312.39782453,0.00019178,2]
[327848613,1716557359877,-500.0,0.00019178,2]
[327848614,1716557359902,-500.0,0.00019178,2]
[327848615,1716557359925,-500.0,0.00019178,2]
[327848616,1716557359947,-500.0,0.00019178,2]
[327848617,1716557359970,-500.0,0.00019178,2]
[327848618,1716557359994,-500.0,0.00019178,2]
[327848619,1716557360018,-500.0,0.00019178,2]
[327848620,1716557360043,-500.0,0.00019178,2]
[327848621,1716557360070,-500.0,0.00019178,2]
[327848622,1716557360094,-500.0,0.00019178,2]
[327848623,1716557360117,-500.0,0.00019178,2]
[327848624,1716557360142,-500.0,0.00019178,2]
[327848625,1716557360172,-500.0,0.00019178,2]
[327848626,1716557360196,-500.0,0.00019178,2]
[327848627,1716557360225,-199.99999999,0.00019178,2]
[327848628,1716557360250,-500.0,0.00019178,2]
[327848629,1716557360274,-500.0,0.00019178,2]
[327848630,1716557360297,-500.0,0.00019178,2]
[327848631,1716557360326,-500.0,0.00019178,2]
[327848632,1716557360347,-161.276481,0.00019178,2]
[327848633,1716557360368,-405.277595,0.00019935,2]
[327848634,1716557362119,-3632.73611165,0.00020137,2]
[327848635,1716557362138,-3373.78266972,0.00020137,2]
[327848638,1716557369054,192.49217499,0.000189,2]
[327848693,1716557433076,-625.64311607,0.0002025,2]
[327848695,1716557433087,-4226.56801723,0.00020387,2]
[327848697,1716557433096,-417.57091557,0.00020452,2]
[327848699,1716557433106,-189.72972499,0.00020542,2]
[327848701,1716557433115,-186.90019354,0.00020639,2]
[327848703,1716557433125,-155.24217641,0.00020639,2]
[327848705,1716557433134,-387.50622714,0.00020639,2]
[327848707,1716557433143,-896.31216814,0.00020639,2]
[327848709,1716557433153,-317.82305032,0.00020639,2]
[327848710,1716557433163,-884.16851169,0.00020639,2]
[327848732,1716557438832,-3571.12476019,0.00020639,2]
[327848734,1716557438841,-648.0400006,0.00020639,2]
[327848736,1716557438850,-288.18237959,0.0002064,2]
[327848738,1716557438859,-160.80275544,0.0002064,2]
[327848740,1716557438869,-5775.58056418,0.0002064,2]
[327848741,1716557438878,-5519.76703365,0.00020642,2]
[327848744,1716557438887,-1326.65657312,0.00020643,2]
[327848746,1716557438897,-2210.133689,0.00020796,2]
[327848748,1716557438907,-151.0,0.00020796,2]
[327848749,1716557438916,-1000.0,0.000208,2]
[327848751,1716557438925,-1000.0,0.000208,3]
[327848754,1716557438935,-151.0,0.000208,2]
[327848755,1716557438944,-151.0,0.000208,2]
[327848758,1716557438954,-151.0,0.000208,2]
[327848760,1716557438963,-154.92253873,0.00020893,2]
[327848761,1716557438973,-189.79554045,0.00020893,2]
[327848763,1716557438982,-9403.91722042,0.00020894,2]
[327848766,1716557438992,-41997.82536246,0.00020908,2]
[327848767,1716557439001,-151.0,0.0002091,2]
[327848769,1716557439011,-151.0,0.0002091,2]
[327848771,1716557439020,-276.05541924,0.00020911,2]
[327848773,1716557439030,-237.39652523,0.00020911,2]
[327848775,1716557439039,-1893.86633087,0.00020911,2]
[327848777,1716557439048,-1456.06682497,0.00020911,10]
[327848779,1716557439059,-281.45154285,0.00020912,2]
[327848781,1716557439068,-154.98450155,0.00020912,2]
[327848783,1716557439078,-7864.25514368,0.00020913,2]
[327848786,1716557439088,-160.109127,0.00020913,2]
[327848787,1716557439098,-1539.04409267,0.00020913,2]
[327848789,1716557439107,-153.0,0.00020959,2]
[327848791,1716557439116,-153.0,0.00020959,2]
[327848793,1716557439126,-153.0,0.00020959,2]
[327848795,1716557439135,-153.0,0.00020959,2]
[327848797,1716557439144,-306.0,0.00020959,2]
[327848799,1716557439153,-1700.1395124,0.00021,2]
[327848801,1716557439163,-329.0635699,0.0002145,2]
[327848803,1716557439172,-172.2528541,0.00021534,2]
[327848805,1716557439182,-517.52098892,0.00021589,2]
[327848807,1716557439196,-284.3310882,0.00021689,2]
[327848808,1716557439205,-153.0,0.00021689,2]
[327848810,1716557439216,-153.0,0.00021689,2]
[327848812,1716557439227,-153.0,0.00021689,2]
[327848814,1716557439237,-153.0,0.00021689,2]
[327848816,1716557439247,-153.0,0.00021689,2]
[327848818,1716557439257,-153.0,0.00021689,2]
[327848820,1716557439269,-153.0,0.00021689,2]
[327848822,1716557439279,-153.0,0.00021689,2]
[327848824,1716557439288,-308.8772826,0.00021689,2]
[327848826,1716557439298,-166.666666,0.00021918,2]
[327848828,1716557439308,-1381.81049092,0.00021918,2]
[327848831,1716557439320,-334.39650053,0.00021918,2]
[327848833,1716557439335,-673.6,0.00021918,2]
[327849021,1716557442297,-378.79359255,0.00020913,2]
[327849025,1716557443268,-197.01364586,0.00020913,2]
[327849027,1716557443279,-64.53235414,0.00020913,2]
[327849039,1716557443821,-435.46764586,0.00020913,2]
[327849040,1716557443830,-220.53288942,0.00020913,2]
[327849248,1716557447062,-279.46711058,0.00020913,2]
[327849250,1716557447071,-500.0,0.00020913,2]
[327849252,1716557447080,-37.67235712,0.00020913,2]
[327849269,1716557448231,417.09541071,0.0002,2]
[327849270,1716557460662,374.26012447,0.00020191,2]
[327849271,1716557461409,3181.54138872,0.00020157,2]
[327849272,1716557462237,347.57950893,0.0002,2]
[327849273,1716557480238,347.57950893,0.0002,2]
[327849274,1716557502231,181.08892415,0.0002,2]
[327849275,1716557515878,202.638798,0.00019912,2]
[327849276,1716557516240,181.08892415,0.0002,2]
[327849280,1716557538253,181.08892415,0.0002,2]
[327849281,1716557552182,92.28443816,0.0002,2]
[327849282,1716557558579,273.37336231,9.9e-05,2]
[327849283,1716557574987,4303.62085346,0.0002,10]
[327849284,1716557607906,154.82968734,9.999e-05,2]
[327849285,1716557613807,154.82968734,0.00015,2]
[327849286,1716557614359,1724.16099631,9.999e-05,2]
[327849287,1716557616660,175.72514253,9.999e-05,2]
[327849288,1716557656795,340.56,0.00019988,3]
[327849289,1716557666477,150.81901718,0.00024713,30]
[327849290,1716557670405,150.0,0.000189,2]
[327849291,1716557789714,1543.933175,0.00018946,2]
[327849294,1716557853162,2020.24147197,0.00019991,11]
[327849295,1716557868032,-154.82968734,0.00019891,2]
[327849296,1716557868059,-171.06619442,0.00019892,2]
[327849297,1716557868085,-414.01679116,0.00019896,2]
[327849298,1716557868113,-163.26944537,0.00019898,2]
[327849299,1716557868142,-20300.81788171,0.0001999,2]
[327849300,1716557912414,396.90828921,0.00018994,2]
[327849301,1716558057638,2250.0,0.00027,30]
[327849303,1716558170696,202.638798,0.00018015,2]
[327849307,1716558345146,-154.82968734,0.00018882,2]
[327849308,1716558345167,-163.26944534,0.00018883,2]
[327849309,1716558345188,-168.25196034,0.00018894,2]
[327849310,1716558434193,-153.17455688,0.00018893,2]
[327849311,1716558442106,-1.65513046,0.00018893,2]
[327849312,1716558442127,-162.96147258,0.00018894,2]
[327849313,1716558442148,-150.0,0.000189,2]
[327849314,1716558442169,-3080.86973316,0.00018976,2]
[327849315,1716558442201,-6365.61473499,0.00018976,2]
[327849316,1716558450129,-163.26944534,0.00018877,2]
[327849317,1716558450151,-41611.85506197,0.00018976,2]
[327849318,1716558453762,1010.12073598,0.0002,11]
[327849324,1716558545101,-154.82968734,0.00018973,2]